Workbook

Sheet Eingabe
B2: Ermittlung der optimalen Losgröße
B4: Bei einem prognostizierten Auftragsvolumen für eine Periode kann die optimale Losgröße, unter Berücksichtigung von
B5: Lagerkosten und Rüstkosten tabellarisch ermittelt werden.
F8: =D22 -> 8 | G8: 0 | H8: =F8 -> 8
F9: =D22 -> 8 | G9: =D20 -> 62625 | H9: =G9 -> 62625
B20: Gesamtkostenminimum | D20: =MIN(Berechnungen!H9:H28) -> 62625
B22: Anzahl der Lose | D22: =VLOOKUP(D20,Berechnungen!H9:I28,2,FALSE) -> 8
B24: Stückzahl je Los | D24: =VLOOKUP(D22,Berechnungen!B9:C28,2) -> 12500

Sheet Berechnungen
B2: Auftragsvolumen in Stück | E2: 100000 | F2: Rüstkosten je Umrüstung | I2: 4000
B3: Materialstückkosten | E3: 20 | F3: Lagerkostensatz in % | I3: 8
B4: Fertigungsstückkosten | E4: 15 | F4: Lagerzinssatz in % | I4: 6
B6: Anzahl der Lose | C6: Fertigungs- größe in Stück | D6: Herstellwert | E6: durchschnitt- licher Lager-bestand in € | F6: Lagerkosten | G6: Rüstkosten | H6: Gesamt- | I6: Anzahl der Lose
H8: kosten
B9: 1 | C9: =ROUNDUP($E$2/B9,0) -> 100000 | D9: =($E$3+$E$4)*C9 -> 3500000 | E9: =D9/2 -> 1750000 | F9: =(E9*($I$3+$I$4))/100 -> 245000 | G9: =$I$2*B9 -> 4000 | H9: =F9+G9 -> 249000 | I9: 1
B10: 2 | C10: =ROUNDUP($E$2/B10,0) -> 50000 | D10: =($E$3+$E$4)*C10 -> 1750000 | E10: =D10/2 -> 875000 | F10: =(E10*($I$3+$I$4))/100 -> 122500 | G10: =$I$2*B10 -> 8000 | H10: =F10+G10 -> 130500 | I10: 2
B11: 3 | C11: 33334 | D11: 1166690 | E11: 583345 | F11: 81668.3 | G11: 12000 | H11: =F11+G11 -> 93668.3 | I11: 3
B12: 4 | C12: 25000 | D12: 875000 | E12: 437500 | F12: 61250 | G12: 16000 | H12: 77250 | I12: 4
B13: 5 | C13: 20000 | D13: 700000 | E13: 350000 | F13: 49000 | G13: 20000 | H13: 69000 | I13: 5
B14: 6 | C14: 16667 | D14: 583345 | E14: 291672.5 | F14: 40834.15 | G14: 24000 | H14: 64834.15 | I14: 6
B15: 7 | C15: 14286 | D15: 500010 | E15: 250005 | F15: 35000.7 | G15: 28000 | H15: 63000.7 | I15: 7
B16: 8 | C16: 12500 | D16: 437500 | E16: 218750 | F16: 30625 | G16: 32000 | H16: 62625 | I16: 8
B17: 9 | C17: 11112 | D17: 388920 | E17: 194460 | F17: 27224.4 | G17: 36000 | H17: 63224.4 | I17: 9
B18: 10 | C18: 10000 | D18: 350000 | E18: 175000 | F18: 24500 | G18: 40000 | H18: 64500 | I18: 10
B19: 11 | C19: 9091 | D19: 318185 | E19: 159092.5 | F19: 22272.95 | G19: 44000 | H19: 66272.95 | I19: 11
B20: 12 | C20: 8334 | D20: 291690 | E20: 145845 | F20: 20418.3 | G20: 48000 | H20: 68418.3 | I20: 12
B21: 13 | C21: 7693 | D21: 269255 | E21: 134627.5 | F21: 18847.85 | G21: 52000 | H21: 70847.85 | I21: 13
B22: 14 | C22: 7143 | D22: 250005 | E22: 125002.5 | F22: 17500.35 | G22: 56000 | H22: 73500.35 | I22: 14
B23: 15 | C23: 6667 | D23: 233345 | E23: 116672.5 | F23: 16334.15 | G23: 60000 | H23: 76334.15 | I23: 15
B24: 16 | C24: 6250 | D24: 218750 | E24: 109375 | F24: 15312.5 | G24: 64000 | H24: 79312.5 | I24: 16
B25: 17 | C25: 5883 | D25: 205905 | E25: 102952.5 | F25: 14413.35 | G25: 68000 | H25: 82413.35 | I25: 17
B26: 18 | C26: 5556 | D26: 194460 | E26: 97230 | F26: 13612.2 | G26: 72000 | H26: 85612.2 | I26: 18
B27: 19 | C27: 5264 | D27: 184240 | E27: 92120 | F27: 12896.8 | G27: 76000 | H27: 88896.8 | I27: 19
B28: 20 | C28: 5000 | D28: 175000 | E28: 87500 | F28: 12250 | G28: 80000 | H28: 92250 | I28: 20
B32: Die Fertigungsgröße in Stück ergibt sich aus der Division des Auftgragsvolumens mit den alternativen Losen. Der Herstellwert
B33: je Los ergibt sich als Produkt der Material- und Fertigungskosten und Fertigungsgröße. An Lagerkosten fallen ein
B34: prozentualer Anteil am wertmäßigen Lagerbestand und ein Zins für das gebundene Kapital an. Rüstkosten fallen für jede
B35: Umrüstung an. Die optimale Losgröße ergibt sich aus dem Minimum von Lagerkosten und Rüstkosten zusammen.

Sheet Grafiken
